bitfinex/quotes_ETHUSD_20250804
["timestamp","ask_amount","ask_price","bid_price","bid_amount"]
[1754342484502,0.1344,3715.8,3715.0,2.69176817]
[1754342484503,0.9101,3715.8,3715.0,2.69176817]
[1754342484809,0.1344,3715.5,3715.1,2.69165706]
[1754342484953,1.43741,3715.7,3714.1,2.8278369]
[1754342484954,4.363,3715.4,3715.2,2.69158822]
[1754342485153,0.4804,3715.3,3714.9,2.69279857]
[1754342485373,0.1344,3715.0,3714.9,2.69282831]
[1754342485578,4.4974,3715.0,3714.9,2.69282831]
[1754342485776,0.4804,3715.8,3715.7,2.69128293]
[1754342485992,0.55,3716.5,3715.8,2.6912105]
[1754342485993,0.9101,3716.3,3715.8,2.6912105]
[1754342486185,5.2721,3716.2,3715.8,2.6912105]
[1754342486400,0.1344,3715.8,3715.7,2.69128293]
[1754342486550,0.4804,3715.8,3715.0,2.96110398]
[1754342486754,0.408129,3716.4,3715.0,2.96110398]
[1754342486755,0.1344,3715.6,3715.5,2.6914278]
[1754342487050,4.4974,3715.6,3715.5,2.6914278]
[1754342487651,4.4974,3715.6,3714.9,0.001]
[1754342487849,5.2731,3715.6,3715.3,2.69153132]
[1754342488197,0.1344,3715.2,3715.1,2.69171758]
[1754342488353,4.4964,3715.2,3715.1,2.69171758]
[1754342488684,4.9768,3715.2,3715.1,2.69171758]
[1754342489064,5.4065,3715.2,3714.9,0.001]
[1754342489256,0.9101,3715.1,3714.9,0.001]
[1754342489689,0.9101,3715.0,3714.9,0.001]
[1754342490192,3.60189004,3715.0,3714.9,0.001]
[1754342490376,0.9101,3715.0,3714.9,0.001]
[1754342490691,3.60189004,3715.0,3714.9,0.001]
[1754342490890,4.72150942,3715.0,3714.9,0.001]
[1754342491277,8.30515679,3715.0,3714.9,0.001]
[1754342491594,8.27150942,3715.0,3714.9,0.001]
[1754342492256,8.5224462,3715.0,3714.9,0.001]
[1754342493193,6.24193496,3714.8,3714.7,0.001]
[1754342493377,43.5835336,3714.8,3714.7,1e-08]
[1754342493596,44.4936336,3714.8,3714.7,1e-08]
[1754342494257,13.9436336,3714.8,3714.7,1e-08]
[1754342494459,8.2721,3714.8,3714.7,1e-08]
[1754342494761,11.51403496,3714.8,3714.7,1e-08]
[1754342494966,8.2721,3714.8,3714.7,1e-08]
[1754342495956,0.4804,3715.2,3714.7,1e-08]
[1754342496161,4.362,3715.1,3714.7,1e-08]
[1754342496370,4.8424,3715.1,3714.7,2.6919939]
[1754342496573,4.362,3715.1,3714.9,2.69186046]
[1754342496791,4.362,3715.1,3714.7,1e-08]
[1754342496792,4.8424,3715.1,3714.7,1e-08]
[1754342497116,2.69187504,3714.9,3714.7,1e-08]
[1754342497436,4.61338048,3714.8,3714.7,1e-08]
[1754342498115,5.52348048,3714.8,3714.7,1e-08]
[1754342499119,8.21541544,3714.8,3714.7,1e-08]
[1754342499319,11.21541544,3714.8,3714.7,1e-08]
[1754342499486,9.91420757,3714.8,3714.7,1e-08]
[1754342499689,12.60614253,3714.8,3714.7,1e-08]
[1754342500084,13.15614253,3714.8,3714.7,1e-08]
[1754342500596,43.15614253,3714.8,3714.7,1e-08]
[1754342501086,13.15614253,3714.8,3714.7,1e-08]
[1754342502026,43.15614253,3714.8,3714.7,1e-08]
[1754342502384,43.15614253,3714.8,3714.6,1e-08]
[1754342502385,37.98640742,3714.7,3714.6,1e-08]
[1754342502614,41.87654976,3714.7,3714.6,1e-08]
[1754342502824,5.16,3714.5,3714.3,1e-08]
[1754342503120,5.16,3714.5,3714.1,0.001]
[1754342503121,4.85236982,3714.2,3714.1,1e-08]
[1754342503332,51.642975,3714.2,3714.1,1e-08]
[1754342503491,52.51942038,3714.2,3714.1,1e-08]
[1754342504413,6.2425148,3714.0,3713.9,1e-08]
[1754342504610,42.46589528,3714.0,3713.9,1e-08]
[1754342504783,43.37599528,3714.0,3713.9,1e-08]
[1754342505024,44.76672237,3714.0,3713.9,1e-08]
[1754342505434,13.15672237,3714.0,3713.9,1e-08]
[1754342506057,8.24472237,3714.0,3713.9,1e-08]
[1754342506271,12.60572237,3714.0,3713.9,1e-08]
[1754342506420,3.25138048,3714.0,3713.9,1e-08]
[1754342506623,6.465,3714.2,3713.9,2.69258731]
[1754342506823,4.361,3714.1,3713.9,1e-08]
[1754342507555,4.361,3714.1,3714.0,2.6925148]
[1754342507761,4.361,3714.1,3713.9,1e-08]
[1754342507959,4.361,3714.1,3713.9,2.69256883]
[1754342508137,4.361,3714.1,3714.0,2.6925148]
[1754342508335,4.361,3714.1,3713.9,1e-08]
[1754342509286,4.361,3714.1,3713.9,2.69258587]
[1754342509656,4.39465552,3714.1,3713.9,1e-08]
[1754342509886,4.1542148,3714.0,3713.9,1e-08]
[1754342510079,4.40500713,3714.0,3713.9,1e-08]
[1754342510568,4.40501722,3714.0,3713.9,1e-08]
[1754342510761,8.76601722,3714.0,3713.9,1e-08]
[1754342511353,11.76601722,3714.0,3713.9,1e-08]
[1754342511554,13.9938801,3714.0,3713.9,1e-08]
[1754342513481,13.74307768,3714.0,3713.9,1e-08]
[1754342513684,13.99396057,3714.0,3713.9,1e-08]
[1754342514484,43.99396057,3714.0,3713.9,1e-08]
[1754342514908,43.99396057,3714.0,3713.5,0.001]
[1754342514909,3.24280482,3713.6,3713.5,0.001]
[1754342515058,37.88734777,3713.6,3713.5,0.001]
[1754342515253,8.76538771,3713.6,3713.5,0.001]
[1754342516596,8.76660269,3713.6,3713.5,0.001]
[1754342517196,4.40560269,3713.6,3713.5,0.001]
[1754342517384,10.31855981,3713.6,3713.5,0.001]
[1754342518002,3.24294985,3713.4,3713.3,0.001]
[1754342518207,37.88770959,3713.4,3713.3,0.001]
[1754342518365,38.76574772,3713.4,3713.3,0.001]
[1754342518568,40.13440958,3713.4,3713.3,1e-08]
[1754342518795,44.49440958,3713.4,3713.3,1e-08]
[1754342520819,46.10440958,3713.4,3713.3,1e-08]
[1754342521182,48.94140958,3713.4,3713.3,1e-08]
[1754342522422,3.24367525,3712.4,3712.3,1e-08]
[1754342522720,47.32495121,3712.4,3712.3,1e-08]
[1754342522863,49.84665121,3712.4,3712.3,1e-08]
[1754342523319,43.87565121,3712.4,3712.3,1e-08]
[1754342523464,48.23665121,3712.4,3712.3,1e-08]
[1754342523818,51.40760833,3712.4,3712.3,1e-08]
[1754342524267,67.57756256,3712.4,3712.3,1e-08]
[1754342524723,45.42760833,3712.4,3712.3,1e-08]
[1754342524902,43.96590833,3712.4,3712.3,1e-08]
[1754342525071,18.32590833,3712.4,3712.3,1e-08]
[1754342525493,13.96590833,3712.4,3712.3,1e-08]
[1754342525678,6.47,3712.6,3712.3,0.14330001]
[1754342525883,2.69367525,3712.4,3712.3,1e-08]
[1754342526094,4.36,3712.5,3712.3,1e-08]
[1754342526371,6.47,3712.6,3712.3,1e-08]
[1754342526627,4.61208233,3712.5,3712.3,1e-08]
[1754342526806,2.69367525,3712.4,3712.3,1e-08]
[1754342526972,4.361,3712.4,3712.3,1e-08]
[1754342527175,4.361,3712.4,3712.3,2.69374782]
[1754342527486,3.363,3714.2,3712.3,0.41027479]
[1754342527826,6.47,3713.8,3712.4,0.1433]
[1754342528129,0.1344,3713.1,3713.0,2.69323996]
[1754342528314,4.74548385,3713.1,3713.0,2.83653996]
[1754342528483,0.38548385,3713.1,3713.0,2.83653996]
[1754342528688,4.61108385,3713.1,3713.0,3.3895277]
[1754342528918,0.25108385,3713.1,3713.0,3.3895277]
[1754342529232,4.61108385,3713.1,3713.0,3.3895277]
[1754342529521,4.61108385,3713.1,3713.0,0.1433]
[1754342530338,0.25108385,3713.1,3713.0,2.83653996]
[1754342530619,0.1344,3713.5,3713.4,2.69294985]
[1754342530944,4.4944,3713.5,3713.4,2.83624985]
[1754342531146,0.38548674,3713.5,3713.4,2.83624985]
[1754342531328,4.4944,3713.5,3713.4,2.83624985]
[1754342531537,4.74548674,3713.5,3713.4,2.83624985]
[1754342531837,0.25108674,3713.5,3713.4,2.83624985]
[1754342532029,4.359,3713.5,3713.4,2.83624985]
[1754342532229,4.61008674,3713.5,3713.4,2.83624985]
[1754342533939,0.25108674,3713.5,3713.4,2.83624985]
[1754342534142,4.359,3713.5,3713.4,2.83624985]
[1754342534313,4.61008674,3713.5,3713.4,2.83624985]
[1754342535539,0.1344,3713.7,3713.6,2.69280482]
[1754342535843,0.1344,3713.7,3713.0,0.1344]
[1754342535844,4.4924,3713.7,3713.1,0.0024]
[1754342536161,4.60917415,3713.6,3713.5,2.69281876]
[1754342536314,4.358,3713.6,3713.5,2.69281876]
[1754342539262,0.1344,3713.7,3713.6,2.69280482]
[1754342539416,4.4914,3713.7,3713.6,2.69280482]
[1754342539612,4.4914,3713.7,3713.5,2.6928506]
[1754342540346,4.4914,3713.7,3713.6,2.69280482]
[1754342541061,4.4914,3713.7,3713.5,2.69285506]
[1754342541433,0.1344,3713.7,3713.6,2.69280482]
[1754342541632,4.4904,3713.7,3713.5,2.6928538]
[1754342541845,4.4904,3713.7,3713.6,2.69280482]
[1754342542249,4.4904,3713.7,3712.5,0.0024]
[1754342542250,0.1344,3713.7,3712.5,0.0024]
[1754342542421,4.4904,3713.7,3713.6,2.69280482]
[1754342542613,4.4904,3713.7,3713.1,0.1344]
[1754342542614,4.9749,3713.7,3713.1,0.1344]
[1754342542955,0.1344,3713.4,3713.1,2.69314934]
[1754342543151,6.47,3714.3,3712.6,0.1344]
[1754342543364,0.25125442,3714.2,3712.7,0.1433]
[1754342543524,7.29967077,3714.2,3713.3,2.69300154]
[1754342543725,3.1584275,3714.4,3713.8,2.69259332]
[1754342543726,4.356,3714.1,3713.8,2.69259332]
[1754342543921,0.1344,3713.8,3713.5,2.69284548]
[1754342544223,4.356,3713.7,3713.6,2.69280482]
[1754342544435,4.356,3713.7,3713.5,2.69286259]
[1754342544729,4.356,3713.7,3713.6,2.69280482]
[1754342545256,4.356,3713.7,3713.6,3.23138013]
[1754342545419,4.356,3713.7,3713.6,2.69280482]
[1754342546734,4.356,3713.7,3713.4,2.69291989]
[1754342546933,0.4845,3713.6,3712.5,0.1433]
[1754342547241,0.4865,3714.1,3713.5,2.69287733]
[1754342547449,0.1344,3713.4,3713.0,3.0]
[1754342547644,4.355,3713.3,3713.2,2.6930949]
[1754342548863,4.355,3713.3,3713.0,2.69318098]
[1754342549023,0.4845,3713.2,3713.0,2.69323832]
[1754342549228,0.1344,3713.1,3712.9,2.69330436]
[1754342549544,0.5986,3713.1,3712.9,2.69330774]
[1754342549743,0.1344,3713.1,3712.9,2.69330774]
[1754342549993,0.1344,3712.9,3712.3,1e-08]
[1754342550247,0.1344,3712.9,3712.8,2.69338504]
[1754342550558,4.4884,3712.9,3712.8,2.69338504]
[1754342551030,4.9729,3712.9,3712.4,2.69361322]
[1754342551231,4.9729,3712.9,3712.6,2.69347961]
[1754342551565,4.9729,3712.9,3712.7,2.69345206]
[1754342552227,0.9487,3712.8,3712.3,1e-08]
[1754342552561,0.1344,3712.5,3712.3,1e-08]
[1754342552765,4.354,3712.4,3712.3,1e-08]
[1754342553059,4.8385,3712.4,3712.3,1e-08]
[1754342553263,6.14942735,3712.4,3712.3,1e-08]
[1754342553440,8.80943166,3712.4,3712.3,1e-08]
[1754342553764,6.11575641,3712.4,3712.3,1e-08]
[1754342554167,6.11475641,3712.4,3712.3,1e-08]
[1754342554663,8.80843166,3712.4,3712.3,1e-08]
[1754342554829,6.11475641,3712.4,3712.3,1e-08]
[1754342555664,4.353,3712.4,3712.3,1e-08]
[1754342555961,6.468,3713.0,3712.7,2.69345759]
[1754342556163,6.468,3713.0,3712.3,1e-08]
[1754342556164,0.1344,3712.7,3712.3,1e-08]
[1754342556349,6.468,3713.0,3712.5,2.69354329]
[1754342556350,4.353,3712.6,3712.5,2.69354329]
[1754342556740,6.9525,3713.0,3712.4,2.69365369]
[1754342557054,6.9525,3713.0,3712.3,2.6937222]
[1754342557055,0.1344,3712.5,3712.3,2.6937222]
[1754342557252,0.1344,3712.5,3712.4,2.69367525]
[1754342557451,0.1344,3712.5,3712.3,1e-08]
[1754342557452,4.4874,3712.5,3712.3,1e-08]
[1754342557655,3.64237525,3712.4,3712.3,1e-08]
[1754342557970,0.9487,3712.4,3712.3,1e-08]
[1754342558168,4.74492624,3712.4,3712.3,1e-08]
[1754342558462,2.01758005,3712.4,3712.3,1e-08]
[1754342559092,5.3017,3712.4,3712.3,1e-08]
[1754342559532,0.4845,3712.4,3712.3,1e-08]
[1754342559732,4.8375,3712.4,3712.3,1e-08]
[1754342560167,5.3017,3712.4,3712.3,1e-08]
[1754342561167,5.3007,3712.4,3712.3,1e-08]
[1754342561736,4.8365,3712.4,3712.3,1e-08]
[1754342562072,5.3007,3712.4,3712.3,1e-08]
[1754342562370,6.10012449,3712.4,3712.3,1e-08]
[1754342563167,8.79379974,3712.4,3712.3,1e-08]
[1754342563329,9.34379974,3712.4,3712.3,1e-08]
[1754342563529,2.69396551,3712.0,3711.9,0.001]
[1754342563733,7.6531901,3712.0,3711.9,0.001]
[1754342563972,8.6018901,3712.0,3711.9,0.001]
[1754342564135,9.1518901,3712.0,3711.9,0.001]
[1754342564640,12.1518901,3712.0,3711.9,0.001]
[1754342568765,12.1518901,3712.0,3711.5,1e-08]
[1754342568766,2.69425584,3711.6,3711.5,1e-08]
[1754342569077,10.59525584,3711.6,3711.5,1e-08]
[1754342569238,11.49055584,3711.6,3711.5,1e-08]
[1754342570192,7.13955584,3711.6,3711.5,1e-08]
[1754342570478,11.49055584,3711.6,3711.5,1e-08]
[1754342570649,13.05879834,3711.6,3711.5,1e-08]
[1754342571052,0.4643,3712.2,3711.5,2.69426334]
[1754342571251,4.351,3712.1,3711.5,1e-08]
[1754342571593,7.04491585,3712.1,3711.5,1e-08]
[1754342572078,4.351,3712.0,3711.5,2.69429984]
[1754342572498,0.4643,3712.2,3711.5,1e-08]
[1754342572668,4.351,3712.1,3711.5,2.6942968]
[1754342572866,4.351,3712.1,3711.6,2.69420886]
[1754342573066,0.4643,3712.0,3711.5,1e-08]
[1754342573470,2.69425584,3711.6,3711.5,1e-08]
[1754342573781,7.04525584,3711.6,3711.5,1e-08]
[1754342573983,7.94055584,3711.6,3711.5,1e-08]
[1754342574145,11.49055584,3711.6,3711.5,1e-08]
[1754342574989,11.48955584,3711.6,3711.5,1e-08]
[1754342575149,44.2182177,3711.6,3711.5,1e-08]
[1754342578957,39.8682177,3711.6,3711.5,1e-08]
[1754342579158,44.2182177,3711.6,3711.5,1e-08]
[1754342582059,12.7719177,3711.6,3711.5,1e-08]
[1754342582300,7.04325584,3711.6,3711.5,1e-08]
[1754342582504,3.44828347,3712.0,3711.5,1e-08]
[1754342582505,0.75428069,3712.0,3711.5,1e-08]
[1754342582666,6.6109,3712.4,3711.5,1e-08]
[1754342582667,7.04304113,3711.9,3711.5,0.14330001]
[1754342582860,2.69425584,3711.6,3711.5,1e-08]
[1754342583075,7.07693403,3711.6,3711.5,1e-08]
[1754342583295,8.05755584,3711.6,3711.5,1e-08]
[1754342583589,9.17582842,3711.6,3711.5,1e-08]
[1754342583814,9.42752589,3711.6,3711.5,1e-08]
[1754342583997,9.17582842,3711.6,3711.5,1e-08]
[1754342584194,12.4275199,3711.6,3711.5,1e-08]
[1754342584492,12.17582842,3711.6,3711.5,1e-08]
[1754342584703,7.82682842,3711.6,3711.5,1e-08]
[1754342584902,12.42753885,3711.6,3711.5,1e-08]
[1754342585115,12.85853885,3711.6,3711.5,1e-08]
[1754342586461,7.61423885,3711.6,3711.5,1e-08]
[1754342586708,11.41223885,3711.6,3711.5,1e-08]
[1754342587712,7.06423885,3711.6,3711.5,1e-08]
[1754342587892,11.41223885,3711.6,3711.5,1e-08]
[1754342588099,10.29396627,3711.6,3711.5,1e-08]
[1754342590018,3.25171043,3711.6,3711.5,1e-08]
[1754342590216,7.59971043,3711.6,3711.5,1e-08]
[1754342590419,0.25171043,3711.6,3711.5,1e-08]
[1754342590616,10.819,3711.6,3711.5,1e-08]
[1754342590823,11.07071043,3711.6,3711.5,1e-08]
[1754342591120,10.819,3711.6,3711.5,1e-08]
[1754342592585,6.472,3711.6,3711.5,1e-08]
[1754342592821,3.0,3712.1,3711.5,1e-08]
[1754342593023,11.07001178,3712.0,3711.5,0.14330001]
[1754342593223,0.1344,3711.8,3711.6,0.1433]
[1754342593523,4.346,3711.7,3711.6,2.83755584]
[1754342593829,4.346,3711.7,3711.5,2.69432205]
[1754342594325,4.346,3711.7,3711.5,2.83762205]
[1754342594794,4.346,3711.7,3711.5,2.69432205]
[1754342595161,4.346,3711.7,3711.5,1e-08]
[1754342595361,4.346,3711.7,3711.5,2.69431707]
[1754342596237,4.346,3711.7,3711.5,1e-08]
[1754342596741,4.346,3711.7,3711.4,2.59439805]
[1754342596942,4.346,3711.7,3711.3,2.69445066]
[1754342597139,4.346,3711.7,3710.9,0.2753]
[1754342597140,4.346,3711.7,3710.9,2.96999981]
[1754342597340,2.72797815,3711.6,3711.0,2.69463822]
[1754342597663,2.72797815,3711.6,3710.5,0.1409]
[1754342597664,1.52429854,3711.6,3710.3,0.0024]
[1754342597843,6.472,3712.0,3710.3,0.0024]
[1754342597844,0.1344,3711.0,3710.9,2.69476407]
[1754342598046,4.4794,3711.0,3710.9,2.69476407]
[1754342598469,4.4794,3711.0,3710.6,2.69497281]
[1754342598642,4.4794,3711.0,3710.4,0.1344]
[1754342598840,4.345,3711.0,3710.5,2.69505457]
[1754342599063,0.1344,3710.7,3710.6,2.69498194]
[1754342599237,4.4784,3710.7,3710.6,2.69498194]
[1754342599754,4.344,3710.7,3710.6,0.81430365]
[1754342599957,4.344,3710.7,3710.6,2.97268194]
[1754342600466,0.1344,3711.5,3711.3,2.69442537]
[1754342600668,4.344,3711.4,3711.3,2.69442537]
[1754342601369,4.344,3711.4,3710.9,0.1344]
[1754342601370,2.694498,3711.3,3710.9,0.1344]
[1754342601663,2.694498,3711.3,3710.5,2.83828525]
[1754342601664,0.1344,3711.1,3710.8,2.69478104]
[1754342601869,0.1344,3711.1,3711.0,2.69469145]
[1754342602068,6.9391,3712.0,3711.0,2.69469145]
[1754342602364,0.1344,3711.3,3711.2,2.69452794]
[1754342602564,4.4774,3711.3,3711.2,2.69452794]
[1754342602804,4.4774,3711.3,3711.1,2.69457361]
[1754342603101,4.4774,3711.3,3711.2,2.69454623]
[1754342603466,4.9445,3711.3,3710.8,2.69483669]
[1754342603669,0.1344,3711.1,3710.7,2.69489227]
[1754342603895,4.343,3711.0,3710.7,2.69489227]
[1754342604190,4.343,3711.0,3710.5,0.1344]
[1754342604396,4.343,3711.0,3710.9,2.69476407]
[1754342604912,4.342,3711.0,3710.9,2.6947347]
[1754342606707,4.342,3711.0,3710.5,0.1344]
[1754342606873,4.342,3711.0,3710.8,2.69478521]
[1754342607073,0.1344,3711.1,3710.5,0.1344]
[1754342607270,7.26817,3712.0,3710.4,0.001]
[1754342607271,6.472,3712.0,3710.7,5.69490931]
[1754342607511,0.1344,3711.8,3711.4,2.69436618]
[1754342607807,0.6015,3711.8,3711.5,2.69431868]
[1754342608476,0.6015,3711.8,3711.0,0.1344]
[1754342608704,0.6015,3711.8,3711.6,2.69422781]
[1754342608916,0.6015,3711.8,3711.5,2.69431771]
[1754342609906,0.6015,3711.8,3711.4,2.69437717]
[1754342610332,0.002,3711.7,3711.5,2.69430779]
[1754342610542,4.341,3711.6,3711.5,2.69430779]
[1754342610904,0.002,3711.7,3711.6,2.69425584]
[1754342611230,4.342,3711.7,3711.6,2.69425584]
[1754342611620,4.342,3711.7,3711.0,0.1344]
[1754342611823,4.342,3711.7,3711.0,0.35506122]
[1754342612022,0.002,3711.7,3711.6,2.69425584]
[1754342612217,4.342,3711.7,3711.6,2.69425584]
[1754342612416,4.342,3711.7,3711.5,2.69430024]
[1754342612598,4.342,3711.7,3711.2,2.69454623]
[1754342612599,0.002,3711.7,3711.6,2.69425584]
[1754342612921,4.342,3711.7,3711.6,2.69425584]
[1754342613248,4.342,3711.7,3711.6,3.26291503]
[1754342615550,0.002,3711.7,3711.6,3.26291503]
[1754342615772,4.341,3711.7,3711.6,3.2832104]
[1754342615934,4.341,3711.7,3711.6,3.26291503]
[1754342616134,1e-08,3711.7,3711.6,6.95621503]
[1754342616336,0.002,3712.5,3712.4,2.69367525]
[1754342616521,0.002,3712.5,3712.4,6.55270567]
[1754342616721,0.002,3712.5,3712.4,6.67572481]
[1754342616958,0.002,3712.5,3712.4,6.53242481]
[1754342617148,0.002,3712.5,3712.4,6.88127821]
[1754342618730,0.002,3712.5,3712.4,6.73797821]
[1754342619631,0.002,3712.5,3712.4,6.88127821]
[1754342620351,0.002,3712.5,3712.4,6.73797821]
[1754342624173,0.4691,3712.5,3712.4,3.53242481]
[1754342624471,0.9397,3712.5,3712.2,2.69382037]
[1754342624774,0.9397,3712.5,3712.1,2.69384952]
[1754342625072,3.63142106,3712.4,3711.8,2.69410646]
[1754342625298,2.69382762,3712.2,3711.5,2.69427777]
[1754342625504,4.334,3712.1,3711.3,2.69444884]
[1754342625666,4.334,3712.1,3711.0,0.001]
[1754342625667,0.9377,3712.0,3711.4,2.69433124]
[1754342625868,0.9377,3712.0,3711.0,0.001]
[1754342625869,0.9377,3711.9,3711.3,2.69445341]
[1754342626091,4.334,3712.1,3711.5,2.69432843]
[1754342626092,0.1344,3711.6,3711.5,2.69432843]
[1754342626298,4.334,3711.6,3711.5,2.69432843]
[1754342626805,5.2475,3711.6,3711.5,2.69432843]
[1754342628671,5.2475,3711.6,3711.0,0.001]
[1754342628867,0.9135,3711.5,3711.0,0.001]
[1754342629089,1.0479,3711.5,3711.2,2.69449964]
[1754342629313,0.9135,3711.4,3711.2,2.69449964]
[1754342629467,0.4786,3711.3,3711.2,2.69454623]
[1754342629673,0.9135,3711.3,3711.2,2.69454623]
[1754342631766,0.9135,3711.3,3711.2,3.23350968]
[1754342631767,4.333,3711.3,3711.2,3.23350968]
[1754342631973,4.8116,3711.3,3711.2,3.23350968]
[1754342632387,5.2465,3711.3,3711.2,3.23350968]
[1754342633114,5.2465,3711.3,3711.2,2.69448672]
[1754342633489,5.2465,3711.3,3711.1,2.69459319]
[1754342633696,4.4674,3711.3,3711.2,2.69454623]
[1754342634384,5.3809,3711.3,3711.2,2.69454623]
[1754342635319,5.3809,3711.3,3711.1,2.69458991]
[1754342635515,0.9135,3711.2,3711.1,2.69558991]
[1754342637021,0.4786,3711.2,3711.1,2.69558991]
[1754342637699,0.9135,3711.2,3711.1,2.69558991]
[1754342638393,0.9135,3711.2,3711.1,0.001]
[1754342640347,3.60804623,3711.2,3711.1,0.001]
[1754342640846,4.68503386,3711.2,3711.1,0.001]
[1754342641007,1.99048763,3711.2,3711.1,0.001]
[1754342641208,0.9135,3711.2,3711.1,0.001]
[1754342641829,5.2435,3711.2,3711.1,0.001]
[1754342643051,7.97172805,3711.2,3711.1,0.001]
[1754342643347,0.9135,3711.2,3711.1,0.001]
[1754342643534,5.2435,3711.2,3711.1,0.001]
[1754342643919,5.2425,3711.2,3711.1,0.001]
[1754342644337,0.9135,3711.2,3711.1,0.001]
[1754342644858,5.2425,3711.2,3711.1,0.001]
[1754342645280,8.89601575,3711.2,3711.1,0.001]
[1754342645763,2.69461884,3711.1,3711.0,0.001]
[1754342645929,7.02361884,3711.1,3711.0,0.001]
[1754342646263,7.93711884,3711.1,3711.0,0.001]
[1754342646599,4.8076,3711.1,3711.0,0.001]
[1754342646742,5.2425,3711.1,3711.0,0.001]
[1754342646947,0.4786,3711.1,3711.0,0.001]
[1754342647262,7.93711884,3711.1,3711.0,0.001]
[1754342647445,5.2425,3711.1,3711.0,0.001]
[1754342647850,4.8066,3711.1,3711.0,0.001]
[1754342648047,0.4786,3711.1,3711.0,0.001]
[1754342648254,4.8066,3711.1,3711.0,0.001]
[1754342648456,6.9496,3711.5,3711.0,0.001]
[1754342648656,0.4786,3711.1,3711.0,0.001]
[1754342648875,4.8066,3711.1,3711.0,0.001]
[1754342649075,5.2415,3711.1,3711.0,0.001]
[1754342650675,4.328,3711.1,3711.0,2.69569145]
[1754342651177,0.1344,3711.2,3711.0,2.69569145]
[1754342651372,0.1344,3711.2,3711.1,2.69461884]
[1754342651680,4.4614,3711.2,3711.1,2.69461884]
[1754342651862,0.1344,3711.2,3711.1,2.69461884]
[1754342652177,4.4614,3711.2,3711.1,2.69461884]
[1754342652345,7.084,3711.5,3711.2,2.69451762]
[1754342652550,4.327,3711.4,3711.2,2.69451762]
[1754342652977,7.084,3711.5,3711.2,2.69451762]
[1754342652978,4.327,3711.3,3711.2,2.69454623]
[1754342654751,4.327,3711.3,3711.0,0.001]
[1754342655082,4.327,3711.3,3711.0,0.28402326]
[1754342655382,4.326,3711.2,3711.0,0.28402326]
[1754342655581,4.326,3711.1,3711.0,0.001]
[1754342656863,5.2742,3711.1,3711.0,0.001]
[1754342657281,7.96881884,3711.1,3711.0,0.001]
[1754342659491,3.64281884,3711.1,3711.0,0.001]
[1754342659695,8.61499433,3711.1,3711.0,0.001]
[1754342659890,4.28999433,3711.1,3711.0,0.001]
[1754342660082,8.61399433,3711.1,3711.0,0.001]
[1754342661101,4.28999433,3711.1,3711.0,0.001]
[1754342661400,8.64867706,3711.1,3711.0,0.001]
[1754342661706,8.61499433,3711.1,3711.0,0.001]
[1754342662504,12.16499433,3711.1,3711.0,0.001]
[1754342666075,12.16299433,3711.1,3711.0,0.001]
[1754342667409,7.83999433,3711.1,3711.0,0.001]
[1754342667582,12.16299433,3711.1,3711.0,0.001]
[1754342670012,12.16199433,3711.1,3711.0,0.001]
[1754342670820,4.14037549,3711.1,3711.0,0.001]
[1754342671002,4.321,3711.1,3711.0,0.001]
[1754342671814,7.50881884,3711.1,3711.0,0.001]
[1754342672019,7.96381884,3711.1,3711.0,0.001]
[1754342672218,3.18781884,3711.1,3711.0,0.001]
[1754342672392,7.96381884,3711.1,3711.0,0.001]
[1754342672716,9.02964926,3711.1,3711.0,0.001]
[1754342673618,5.88003042,3711.1,3711.0,0.001]
[1754342673835,8.57464926,3711.1,3711.0,0.001]
[1754342674286,9.02964926,3711.1,3711.0,0.001]
[1754342674482,12.02964926,3711.1,3711.0,0.001]
[1754342675721,8.87903042,3711.1,3711.0,0.001]
[1754342675907,10.01461884,3711.1,3711.0,0.001]
[1754342676627,10.50781884,3711.1,3711.0,0.001]
[1754342676987,10.96281884,3711.1,3711.0,0.001]
[1754342677215,10.01461884,3711.1,3711.0,0.001]
[1754342677535,10.96181884,3711.1,3711.0,0.001]
[1754342677815,7.8122,3711.1,3711.0,0.001]
[1754342678219,4.8122,3711.1,3711.0,0.001]
[1754342678441,6.471,3711.5,3711.0,0.001]
[1754342678600,4.318,3711.4,3711.0,0.0044]
[1754342678920,4.318,3711.4,3711.0,0.001]
[1754342679133,0.1344,3711.1,3711.0,0.001]
[1754342679423,4.4524,3711.1,3711.0,0.001]
[1754342679633,8.63527884,3711.1,3711.0,0.001]
[1754342679929,4.99246,3711.1,3711.0,0.001]
[1754342680229,4.4524,3711.1,3711.0,0.001]
[1754342680391,7.14701884,3711.1,3711.0,0.001]
[1754342680820,7.64021884,3711.1,3711.0,0.001]
[1754342681115,8.09521884,3711.1,3711.0,0.001]
[1754342684404,7.14701884,3711.1,3711.0,0.001]
[1754342685503,7.64021884,3711.1,3711.0,0.001]
[1754342685800,8.09521884,3711.1,3711.0,0.001]
[1754342686190,9.17418874,3711.1,3711.0,0.001]
[1754342688294,12.03978874,3711.1,3711.0,0.001]
[1754342688934,12.58978874,3711.1,3711.0,0.001]
[1754342691834,2.69508823,3710.5,3709.9,2.68916436]
[1754342692020,4.313,3710.4,3709.7,0.0034]
[1754342692223,4.313,3710.3,3709.9,2.69549044]
[1754342692398,4.313,3710.2,3709.9,2.69549044]
[1754342692600,4.313,3710.2,3709.9,2.83979044]
[1754342693546,4.313,3710.2,3709.9,2.69549044]
[1754342693838,4.313,3710.2,3709.8,2.69550945]
[1754342694818,4.313,3710.2,3709.9,2.69547936]
[1754342695542,4.313,3710.2,3710.0,2.69540129]
[1754342695710,4.313,3710.2,3709.9,2.6954726]
[1754342696428,4.313,3710.2,3709.6,0.1443]
[1754342696624,4.313,3710.2,3710.0,2.69541072]